fUST/lending_fUST_20250821
["ID","MTS","AMOUNT","RATE_DAILY","PERIOD"]
[380392274,1755724240339,-1449.873609,0.00024899,2]
[380392275,1755724240349,-500.0,0.00024899,2]
[380392276,1755724240358,-1449.873609,0.00024899,2]
[380392277,1755724240367,-1449.873609,0.00024899,2]
[380392278,1755724240377,-164.84798052,0.00024899,2]
[380392279,1755724240386,-1449.873609,0.00024899,2]
[380392280,1755724240396,-1449.873609,0.00024899,2]
[380392281,1755724240405,-1449.873609,0.00024899,2]
[380392282,1755724240415,-1449.873609,0.00024899,2]
[380392283,1755724240424,-500.0,0.00024899,2]
[380392284,1755724240433,-1449.873609,0.00024899,2]
[380392285,1755724240443,-500.0,0.00024899,2]
[380392286,1755724240452,-1449.873609,0.00024899,2]
[380392287,1755724240462,-1449.873609,0.00024899,2]
[380392288,1755724240471,-1449.873609,0.00024899,2]
[380392289,1755724240481,-1449.873609,0.00024899,2]
[380392290,1755724240491,-1449.873609,0.00024899,2]
[380392291,1755724240500,-1449.873609,0.00024899,2]
[380392292,1755724240510,-2120.14076983,0.000249,2]
[380392293,1755724240519,-754299.450272,0.000249,2]
[380392294,1755724240528,-19679.94,0.000249,2]
[380392295,1755724240538,-336.02920062,0.00024987,2]
[380392296,1755724240548,-203.97,0.00025,2]
[380392297,1755724240558,-1500.0,0.00025068,2]
[380392298,1755724240567,-1493.57136994,0.00025074,2]
[380392299,1755724240576,-151.0,0.00025345,2]
[380392300,1755724240586,-16282.24646266,0.00025345,2]
[380392301,1755724240595,-1493.57136994,0.00025349,2]
[380392302,1755724240604,-660.00795354,0.00025427,2]
[380392303,1755724240613,-160.0,0.000255,2]
[380392304,1755724240623,-1208.69063045,0.00025513,3]
[380392305,1755724240632,-823.0,0.00025578,2]
[380392306,1755724240642,-2000.0,0.00025616,2]
[380392307,1755724240651,-1493.57136994,0.00025625,2]
[380392308,1755724240661,-1000.0,0.00025834,5]
[380392309,1755724240670,-150.0,0.00025873,2]
[380392310,1755724240679,-150.0,0.00025873,2]
[380392311,1755724240689,-400.0,0.0002589,2]
[380392312,1755724240698,-3250.37,0.000259,7]
[380392313,1755724240707,-501.74,0.000259,7]
[380392314,1755724240716,-151.0,0.000259,10]
[380392315,1755724240725,-151.0,0.000259,15]
[380392316,1755724240734,-151.0,0.000259,13]
[380392317,1755724240743,-151.0,0.000259,16]
[380392318,1755724240752,-1493.57136994,0.000259,2]
[380392319,1755724240761,-720.97140355,0.00025917,2]
[380392320,1755724240772,-7293.69646098,0.00025989,2]
[380392321,1755724240782,-2640.03181416,0.0002599,2]
[380392322,1755724240791,-159.73,0.00025994,2]
[380392323,1755724240805,-206.472,0.00025994,2]
[380392324,1755724240815,-249.1,0.00025994,2]
[380392325,1755724240825,-973.0,0.00025994,2]
[380392326,1755724240838,-2154.0,0.00025994,2]
[380392327,1755724240848,-637.0,0.00025994,2]
[380392328,1755724240858,-2489.24632098,0.00025996,2]
[380392329,1755724240868,-134403.62049328,0.00026,15]
[380392330,1755724240942,-12687.94051737,0.00026,7]
[380392331,1755724240958,-5122.28,0.00026,7]
[380392332,1755724240967,-844.05985274,0.00026,7]
[380392333,1755724240976,-216.9170744,0.00026,7]
[380392334,1755724240985,-215.82729805,0.00026,7]
[380392335,1755724240995,-1000.02,0.00026,30]
[380392336,1755724241005,-720.97140355,0.00026017,2]
[380392337,1755724241014,-172.39176774,0.00026018,2]
[380392338,1755724241024,-248.58,0.00026027,49]
[380392339,1755724241033,-207.15,0.00026027,49]
[380392340,1755724241042,-165.72,0.00026027,49]
[380392341,1755724241052,-207.17,0.00026027,49]
[380392342,1755724241061,-848.75,0.00026027,49]
[380392343,1755724241071,-300.63,0.00026027,49]
[380392344,1755724241080,-160.622069,0.00026027,2]
[380392345,1755724241089,-199.0,0.0002603,30]
[380392346,1755724241098,-260.0,0.00026048,2]
[380392347,1755724241107,-214.0,0.00026079,2]
[380392348,1755724241116,-720.97140355,0.00026117,2]
[380392349,1755724241125,-1000.02,0.0002613,30]
[380392350,1755724241134,-2500.0,0.00026164,2]
[380392351,1755724241143,-168.0,0.00026166,2]
[380392352,1755724241153,-200.0,0.0002619,15]
[380392353,1755724241161,-168.0,0.00026193,2]
[380392354,1755724241170,-720.97140355,0.00026217,2]
[380392355,1755724241179,-2200.0,0.00026236,2]
[380392356,1755724241188,-817.648,0.00026236,2]
[380392357,1755724241197,-613.06,0.0002624,3]
[380392358,1755724241206,-306.54,0.00026248,3]
[380392359,1755724241215,-1226.12,0.0002625,3]
[380392360,1755724241225,-168.0,0.00026286,2]
[380392361,1755724241234,-19679.94,0.000263,2]
[380392362,1755724241244,-168.0,0.00026311,2]
[380392363,1755724241256,-720.97140355,0.00026317,2]
[380392364,1755724241265,-500.0,0.00026397,5]
[380392365,1755724241274,-500.0,0.00026397,20]
[380392366,1755724241283,-500.0,0.00026397,5]
[380392367,1755724241292,-500.0,0.00026397,5]
[380392368,1755724241303,-500.0,0.00026397,5]
[380392369,1755724241313,-720.97140355,0.00026417,2]
[380392370,1755724241323,-250.0,0.00026421,2]
[380392371,1755724241331,-250.0,0.00026421,2]
[380392372,1755724241341,-720.97140355,0.00026517,2]
[380392373,1755724241350,-200.0,0.00026562,30]
[380392374,1755724241359,-200.0,0.00026562,30]
[380392375,1755724241368,-357.20994865,0.00026562,30]
[380392376,1755724241378,-250.0,0.00026571,2]
[380392377,1755724241386,-360.0,0.00026596,2]
[380392378,1755724241396,-2784.83981755,0.00026604,2]
[380392379,1755724241405,-720.97140355,0.00026617,2]
[380392380,1755724241414,-168.0,0.00026635,2]
[380392381,1755724241423,-199.0,0.00026694,20]
[380392382,1755724241433,-3000.0,0.00026712,2]
[380392383,1755724241442,-151.0,0.00026714,2]
[380392384,1755724241451,-720.97140355,0.00026717,2]
[380392385,1755724241460,-800.0,0.0002681,2]
[380392386,1755724241469,-800.0,0.00026823,2]
[380392387,1755724241479,-800.0,0.00026829,2]
[380392388,1755724241488,-168.0,0.00026841,2]
[380392389,1755724241497,-500.0,0.00026857,2]
[380392390,1755724241510,-800.0,0.00026857,2]
[380392391,1755724241519,-1100.0,0.00026863,2]
[380392392,1755724241528,-500.0,0.00026869,2]
[380392393,1755724241538,-660.00795354,0.00026882,2]
[380392394,1755724241547,-500.0,0.00026888,2]
[380392395,1755724241556,-500.0,0.00026892,2]
[380392396,1755724241566,-3250.37,0.000269,7]
[380392397,1755724241575,-501.74,0.000269,7]
[380392398,1755724241584,-1100.0,0.00026917,2]
[380392399,1755724241594,-500.0,0.00026956,2]
[380392400,1755724241603,-199.03297309,0.00026968,2]
[380392401,1755724241612,-800.0,0.00026973,2]
[380392402,1755724241622,-500.0,0.00026982,2]
[380392403,1755724241632,-513.25248333,0.00027,60]
[380392404,1755724241641,-5122.28,0.00027,7]
[380392405,1755724241650,-1008.632255,0.00027,5]
[380392406,1755724241660,-528.77847288,0.00027,3]
[380392407,1755724241669,-528.77847288,0.00027,3]
[380392408,1755724241679,-417.15472785,0.00027,3]
[380392409,1755724241688,-417.15472785,0.00027,3]
[380392410,1755724241697,-500.0,0.00027002,2]
[380392411,1755724241706,-1780.07623671,0.00027009,2]
[380392412,1755724241715,-500.0,0.00027016,2]
[380392413,1755724241724,-1000.0,0.0002702,5]
[380392414,1755724241732,-500.0,0.00027027,2]
[380392415,1755724241742,-1000.0,0.0002704,5]
[380392416,1755724241752,-214.0,0.00027048,2]
[380392417,1755724241762,-1000.0,0.0002706,5]
[380392418,1755724241775,-1000.0,0.0002708,5]
[380392419,1755724241784,-201.06147971,0.00027084,2]
[380392420,1755724241793,-568.31871111,0.00027087,7]
[380392421,1755724241802,-1000.0,0.000271,5]
[380392422,1755724241811,-500.0,0.00027109,2]
[380392423,1755724241820,-1000.0,0.0002712,5]
[380392424,1755724241829,-998.6940768,0.00027123,3]
[380392425,1755724241838,-265.04141882,0.00027124,2]
[380392426,1755724241848,-151.0,0.00027124,2]
[380392427,1755724241858,-151.79232132,0.00027124,2]
[380392428,1755724241868,-500.0,0.00027124,2]
[380392429,1755724241877,-151.0,0.00027124,2]
[380392430,1755724241887,-151.0,0.00027124,2]
[380392431,1755724241897,-151.0,0.00027124,2]
[380392432,1755724241906,-151.0,0.00027124,2]
[380392433,1755724241916,-500.0,0.00027124,2]
[380392434,1755724241925,-800.0,0.00027131,2]
[380392435,1755724241935,-1100.0,0.00027138,2]
[380392436,1755724241944,-1000.0,0.0002714,5]
[380392437,1755724241954,-460.0,0.00027144,2]
[380392438,1755724241963,-500.0,0.00027148,2]
[380392439,1755724241972,-1000.0,0.0002716,5]
[380392440,1755724241982,-1100.0,0.00027162,2]
[380392441,1755724241991,-168.0,0.00027164,2]
[380392442,1755724242001,-1000.0,0.00027174,2]
[380392443,1755724242011,-172.39176774,0.00027174,2]
[380392444,1755724242020,-599.54006826,0.00027174,2]
[380392445,1755724242029,-1000.0,0.0002718,5]
[380392446,1755724242038,-1141.367745,0.0002718,5]
[380392447,1755724242048,-7293.69646098,0.00027187,2]
[380392448,1755724242057,-2784.83981755,0.00027187,2]
[380392449,1755724242066,-500.0,0.00027197,2]
[380392450,1755724242076,-2000.0,0.000272,2]
[380392451,1755724242085,-1000.0,0.000272,5]
[380392452,1755724242094,-1000.0,0.000272,5]
[380392453,1755724242103,-1558.215259,0.000272,2]
[380392454,1755724242113,-250.0,0.000272,10]
[380392455,1755724242123,-160.0,0.0002721,3]
[380392456,1755724242200,-160.0,0.0002721,3]
[380392457,1755724242210,-160.0,0.0002721,3]
[380392458,1755724242220,-160.0,0.0002726,7]
[380392459,1755724242230,-3500.0,0.0002726,2]
[380392460,1755724242239,-1100.0,0.00027267,2]
[380392461,1755724242248,-353.28192114,0.00027273,2]
[380392462,1755724242260,-151.0,0.00027274,7]
[380392463,1755724242269,-151.0,0.00027274,7]
[380392464,1755724242279,-151.0,0.00027274,7]
[380392465,1755724242287,-151.0,0.00027274,7]
[380392466,1755724242297,-151.0,0.00027274,7]
[380392467,1755724242306,-151.0,0.00027274,7]
[380392468,1755724242314,-152.0,0.00027274,7]
[380392469,1755724242323,-262.172738,0.00027274,7]
[380392470,1755724242333,-151.0,0.00027274,7]
[380392471,1755724242342,-151.0,0.00027274,7]
[380392472,1755724242351,-151.0,0.00027274,7]
[380392473,1755724242361,-151.0,0.00027274,7]
[380392474,1755724242369,-209.200914,0.00027274,7]
[380392475,1755724242378,-151.0,0.00027274,7]
[380392476,1755724242387,-151.0,0.00027274,7]
[380392477,1755724242396,-151.0,0.00027274,7]
[380392478,1755724242405,-218.222086,0.00027274,7]
[380392479,1755724242415,-151.0,0.00027274,7]
[380392480,1755724242423,-193.738354,0.00027274,7]
[380392481,1755724242432,-151.0,0.00027274,7]
[380392482,1755724242441,-151.0,0.00027274,7]
[380392483,1755724242450,-151.0,0.00027274,7]
[380392484,1755724242459,-151.0,0.00027274,7]
[380392485,1755724242468,-242.539547,0.00027274,7]
[380392486,1755724242477,-151.0,0.00027274,7]
[380392487,1755724242486,-151.0,0.00027274,7]
[380392488,1755724242495,-151.0,0.00027274,7]
[380392489,1755724242504,-151.0,0.00027274,7]
[380392490,1755724242513,-151.0,0.00027274,7]
[380392491,1755724242523,-225.249424,0.00027274,7]
[380392492,1755724242532,-151.0,0.00027274,7]
[380392493,1755724242541,-151.867163,0.00027274,7]
[380392494,1755724242550,-151.0,0.00027274,7]
[380392495,1755724242560,-151.0,0.00027274,7]
[380392496,1755724242570,-151.0,0.00027274,7]
[380392497,1755724242580,-151.0,0.00027274,7]
[380392498,1755724242589,-151.0,0.00027274,7]
[380392499,1755724242599,-151.290743,0.00027274,7]
[380392500,1755724242608,-151.0,0.00027274,7]
[380392501,1755724242617,-222.35384,0.00027274,7]
[380392502,1755724242627,-151.436135,0.00027274,7]
[380392503,1755724242636,-151.0,0.00027274,7]
[380392504,1755724242646,-151.0,0.00027274,7]
[380392505,1755724242655,-151.0,0.00027274,7]
[380392506,1755724242664,-151.0,0.00027274,7]
[380392507,1755724242673,-151.0,0.00027274,7]
[380392508,1755724242682,-240.305469,0.00027274,7]
[380392509,1755724242691,-151.0,0.00027274,7]
[380392510,1755724242701,-151.0,0.00027274,7]
[380392511,1755724242710,-151.0,0.00027274,7]
[380392512,1755724242719,-161.488112,0.00027274,7]
[380392513,1755724242729,-151.0,0.00027274,7]
[380392514,1755724242738,-151.0,0.00027274,7]
[380392515,1755724242747,-151.0,0.00027274,7]
[380392516,1755724242757,-151.0,0.00027274,7]
[380392517,1755724242766,-151.0,0.00027274,7]
[380392518,1755724242777,-151.0,0.00027274,7]
[380392519,1755724242786,-151.0,0.00027274,7]
[380392520,1755724242795,-151.0,0.00027274,7]
[380392521,1755724242804,-157.718694,0.00027274,7]
[380392522,1755724242813,-151.0,0.00027274,7]
[380392523,1755724242824,-151.0,0.00027274,7]
[380392524,1755724242833,-151.0,0.00027274,7]
[380392525,1755724242842,-151.0,0.00027274,7]
[380392526,1755724242853,-198.96128,0.00027274,7]
[380392527,1755724242863,-151.0,0.00027274,7]
[380392528,1755724242871,-151.0,0.00027274,7]
[380392529,1755724242881,-151.0,0.00027274,7]
[380392530,1755724242890,-151.0,0.00027274,7]
[380392531,1755724242899,-151.0,0.00027274,7]
[380392532,1755724242908,-151.0,0.00027274,7]
[380392533,1755724242917,-151.0,0.00027274,7]
[380392534,1755724242927,-151.0,0.00027274,7]
[380392535,1755724242936,-151.0,0.00027274,7]
[380392536,1755724242945,-151.0,0.00027274,7]
[380392537,1755724242954,-151.0,0.00027274,7]
[380392539,1755724242963,-151.0,0.00027274,7]
[380392540,1755724242973,-151.0,0.00027274,7]
[380392541,1755724242982,-151.0,0.00027274,7]
[380392543,1755724242991,-151.0,0.00027274,7]
[380392545,1755724243001,-151.0,0.00027274,7]
[380392547,1755724243010,-206.383516,0.00027274,7]
[380392549,1755724243019,-218.872732,0.00027274,7]
[380392551,1755724243028,-218.872732,0.00027274,7]
[380392553,1755724243037,-218.872732,0.00027274,7]
[380392555,1755724243046,-218.872732,0.00027274,7]
[380392556,1755724243055,-218.872732,0.00027274,7]
[380392558,1755724243064,-218.872732,0.00027274,7]
[380392560,1755724243074,-218.872732,0.00027274,7]
[380392562,1755724243083,-218.872732,0.00027274,7]
[380392564,1755724243092,-218.872732,0.00027274,7]
[380392567,1755724243102,-218.872732,0.00027274,7]
[380392568,1755724243111,-218.872732,0.00027274,7]
[380392569,1755724243120,-218.872732,0.00027274,7]
[380392570,1755724243130,-218.872732,0.00027274,7]
[380392571,1755724243140,-218.872732,0.00027274,7]
[380392572,1755724243149,-218.872732,0.00027274,7]
[380392573,1755724243158,-218.872732,0.00027274,7]
[380392574,1755724243167,-151.0,0.00027277,7]
[380392575,1755724243175,-151.0,0.00027277,7]
[380392576,1755724243184,-151.0,0.00027277,7]
[380392577,1755724243194,-151.0,0.00027277,7]
[380392578,1755724243203,-193.296323,0.00027277,7]
[380392579,1755724243212,-7095.71,0.00027282,60]
[380392580,1755724243221,-151.0,0.00027282,7]
[380392581,1755724243230,-151.0,0.00027282,7]
[380392582,1755724243240,-151.0,0.00027287,7]
[380392583,1755724243249,-151.0,0.00027287,7]
[380392584,1755724243259,-151.0,0.00027287,7]
[380392585,1755724243331,-151.0,0.00027287,7]
[380392586,1755724243341,-183.205833,0.00027287,7]
[380392587,1755724243352,-183.205833,0.00027287,7]
[380392588,1755724243361,-183.205833,0.00027287,7]
[380392589,1755724243370,-183.205833,0.00027287,7]
[380392590,1755724243379,-183.205833,0.00027287,7]
[380392591,1755724243389,-183.205833,0.00027287,7]
[380392592,1755724243399,-183.205833,0.00027287,7]
[380392593,1755724243408,-183.205833,0.00027287,7]
[380392594,1755724243417,-183.205833,0.00027287,7]
[380392596,1755724243426,-183.205833,0.00027287,7]
[380392598,1755724243435,-183.205833,0.00027287,7]
[380392599,1755724243444,-183.205833,0.00027287,7]
[380392600,1755724243453,-183.205833,0.00027287,7]
[380392601,1755724243463,-183.205833,0.00027287,7]
[380392602,1755724243472,-183.205833,0.00027287,7]
[380392603,1755724243481,-183.205833,0.00027287,7]
[380392604,1755724243490,-151.0,0.00027287,7]
[380392605,1755724243499,-151.0,0.00027287,7]
[380392606,1755724243509,-151.0,0.00027287,7]
[380392607,1755724243518,-151.0,0.00027287,7]
[380392608,1755724243527,-284.440172,0.00027287,7]
[380392610,1755724243536,-151.244173,0.00027287,7]
[380392612,1755724243544,-200.0,0.00027287,30]
[380392614,1755724243554,-200.0,0.00027287,30]
[380392615,1755724243563,-200.0,0.00027287,30]
[380392616,1755724243572,-232350.61626525,0.00027287,20]
[380392617,1755724243710,-500.0,0.00023976,2]
[380392618,1755724243719,-500.0,0.00023976,2]
[380392619,1755724243728,-500.0,0.00023976,2]
[380392620,1755724243737,-460.64,0.00024159,3]
[380392621,1755724243746,-327.36,0.00025529,3]
[380392622,1755724243758,-593.92,0.00025529,3]
[380392623,1755724243767,-65269.99473502,0.00027287,20]
[380392624,1755724244529,-115886.72946174,0.00027287,20]
[380392625,1755724244596,-4528.28419238,0.00027287,20]
[380392634,1755724262618,574.34296443,0.000191,2]
[380392638,1755724473855,459.0,0.00027397,120]
[380392639,1755724485534,160.622069,0.00013699,2]
[380392643,1755725071089,200.0,0.00027289,120]
[380392648,1755725321815,10885.82953078,0.00019,2]
[380392649,1755725337269,961.738174,0.00027397,120]
[380392651,1755725351128,-300.0,0.00019898,2]
[380392652,1755725351148,-300.0,0.00019899,2]
[380392653,1755725351252,-1200.0,0.00019899,2]
[380392654,1755725351273,-1200.0,0.00019899,2]
[380392655,1755725351292,-251.70148214,0.000199,2]
[380392656,1755725351312,-1995.65703556,0.000199,2]
[380392657,1755725351333,-1154.0096317,0.000199,2]
[380392658,1755725351354,-1154.00963154,0.00020835,2]
[380392659,1755725351373,-151.000001,0.00021,2]
[380392660,1755725351392,-1209.32237477,0.00021,2]
[380392661,1755725351411,-203.17695948,0.00021,2]
[380392662,1755725351429,-190.811232,0.00021602,2]
[380392663,1755725351451,-420.0,0.00021669,2]
[380392664,1755725351471,-965.0,0.0002167,2]
[380392665,1755725351491,-2922.05955779,0.00021674,2]
[380392666,1755725351514,-1154.00963154,0.00021771,2]
[380392667,1755725351533,-500.0,0.00021773,2]
[380392668,1755725351553,-617.91074562,0.00021773,2]
[380392669,1755725351574,-500.0,0.00021773,2]
[380392670,1755725351593,-500.0,0.00021773,2]
[380392671,1755725351612,-500.06002785,0.00021773,2]
[380392672,1755725351631,-50000.0,0.00021774,2]
[380392673,1755725351651,-1680.0,0.00021774,2]
[380392674,1755725351671,-484.81535733,0.0002238,2]
[380392675,1755725351692,-500.0,0.0002238,2]
[380392676,1755725351711,-500.0,0.0002238,2]
[380392677,1755725351730,-500.0,0.0002238,2]
[380392678,1755725351750,-2922.05955777,0.00022463,2]
[380392679,1755725351770,-236.36381,0.00022588,2]
[380392680,1755725351790,-500.0,0.00022973,2]
[380392681,1755725351810,-4876.56580643,0.0002299,2]
[380392682,1755725361137,-500.59189067,0.00021773,2]
[380392683,1755725361159,-500.0,0.00021773,2]
[380392684,1755725361179,-500.0,0.00021773,2]
[380392685,1755725361199,-24479.06158002,0.0002299,2]
[380392686,1755725367102,-16729.34232802,0.0002299,2]
[380392687,1755725369124,-2284.1916832,0.0002299,2]
[380392821,1755725437733,-1175.7731186,0.000199,2]
[380392823,1755725437743,-1175.77311852,0.00020835,2]
[380392825,1755725437753,-5000.0,0.00021729,2]
[380392827,1755725437764,-671.0,0.0002177,2]
[380392829,1755725437773,-1175.77311852,0.00021771,2]
[380392831,1755725437782,-1175.77311852,0.00022706,2]
[380392833,1755725437791,-300.0,0.00022989,2]
[380392835,1755725437801,-10972.24387109,0.0002299,2]
[380392838,1755725437812,-18676.80742247,0.0002299,2]
[380392840,1755725437822,-7567.05,0.00023,2]
[380392842,1755725437832,-151.0,0.000233,7]
[380392844,1755725437842,-151.0,0.000234,9]
[380392846,1755725437851,-160.0,0.00023407,2]
[380392848,1755725437860,-160.0,0.00023407,2]
[380392850,1755725437870,-528.77847288,0.00023407,2]
[380392852,1755725437879,-50000.0,0.00023407,2]
[380392854,1755725437888,-151.0,0.000235,8]
[380392856,1755725437897,-151.0,0.000236,5]
[380392858,1755725437906,-151.0,0.000237,10]
[380392860,1755725437916,-251.64478753,0.00023744,2]
[380392862,1755725437925,-2819.73137044,0.00023773,2]
[380392864,1755725437934,-11540.54638558,0.00023773,2]
[380392866,1755725437943,-2183.31810187,0.00023784,2]
[380392868,1755725437952,-602.46485233,0.00023786,2]
[380392870,1755725437961,-2516.44787537,0.00023787,2]
[380392872,1755725437970,-49145.68208998,0.00023787,2]
[380392874,1755725437979,-2516.44787537,0.00023789,2]
[380392876,1755725437988,-251.64478753,0.000238,2]
[380392878,1755725437998,-172.57443403,0.000238,2]
[380392880,1755725438007,-151.0,0.000238,5]
[380392882,1755725438016,-809.41,0.000238,7]
[380392884,1755725438025,-2264.10087164,0.00023839,2]
[380392886,1755725438034,-151.0,0.00023844,2]
[380392888,1755725438043,-151.0,0.00023844,2]
[380392890,1755725438052,-151.0,0.00023844,2]
[380392892,1755725438062,-300.0,0.00023844,2]
[380392894,1755725438071,-250.0,0.00023844,2]
[380392896,1755725438080,-151.0,0.00023844,2]
[380392898,1755725438089,-151.0,0.00023844,2]
[380392899,1755725438101,-300.0,0.00023844,2]
[380392900,1755725438111,-250.0,0.00023844,2]
[380392901,1755725438120,-151.0,0.00023844,2]
[380392902,1755725438129,-151.0,0.00023844,2]
[380392903,1755725438139,-250.0,0.00023844,2]
[380392904,1755725438148,-300.0,0.00023844,2]
[380392905,1755725438158,-151.0,0.00023844,2]
[380392906,1755725438167,-151.0,0.00023844,2]
[380392907,1755725438177,-291.70077764,0.00023844,2]
[380392908,1755725438187,-300.0,0.00023844,2]
[380392909,1755725438196,-151.0,0.00023844,2]
[380392910,1755725438205,-250.0,0.00023844,2]
[380392911,1755725438214,-151.0,0.00023844,2]
[380392912,1755725438224,-151.0,0.00023844,2]
[380392913,1755725438234,-151.0,0.00023844,2]
[380392914,1755725438244,-300.0,0.00023844,2]
[380392915,1755725438254,-250.0,0.00023844,2]
[380392916,1755725438263,-151.0,0.00023844,2]
[380392917,1755725438272,-151.0,0.00023844,2]
[380392918,1755725438282,-151.0,0.00023844,2]
[380392919,1755725438291,-300.0,0.00023844,2]
[380392920,1755725438300,-250.0,0.00023844,2]
[380392921,1755725438310,-151.0,0.00023844,2]
[380392922,1755725438319,-151.0,0.00023844,2]
[380392923,1755725438328,-151.0,0.00023844,2]
[380392924,1755725438337,-151.0,0.00023844,2]
[380392925,1755725438346,-300.0,0.00023844,2]
[380392926,1755725438426,-250.0,0.00023844,2]
[380392927,1755725438436,-151.0,0.00023844,2]
[380392928,1755725438445,-151.0,0.00023844,2]
[380392929,1755725438454,-151.0,0.00023844,2]
[380392930,1755725438463,-151.0,0.00023844,2]
[380392931,1755725438472,-300.0,0.00023844,2]
[380392932,1755725438482,-250.0,0.00023844,2]
[380392933,1755725438490,-151.0,0.00023844,2]
[380392934,1755725438499,-151.0,0.00023844,2]
[380392935,1755725438509,-151.0,0.00023844,2]
[380392937,1755725438518,-300.0,0.00023844,2]
[380392939,1755725438526,-250.0,0.00023844,2]
[380392941,1755725438535,-151.0,0.00023844,2]
[380392943,1755725438544,-151.0,0.00023844,2]
[380392945,1755725438553,-151.0,0.00023844,2]
[380392947,1755725438562,-151.0,0.00023844,2]
[380392949,1755725438571,-300.0,0.00023844,2]
[380392951,1755725438580,-250.0,0.00023844,2]
[380392953,1755725438589,-151.0,0.00023844,2]
[380392955,1755725438597,-151.0,0.00023844,2]
[380392957,1755725438606,-151.0,0.00023844,2]
[380392959,1755725438615,-151.0,0.00023844,2]
[380392961,1755725438624,-151.0,0.00023844,2]
[380392962,1755725438634,-300.0,0.00023844,2]
[380392964,1755725438643,-250.0,0.00023844,2]
[380392967,1755725438652,-151.0,0.00023844,2]
[380392968,1755725438661,-151.0,0.00023844,2]
[380392970,1755725438671,-151.0,0.00023844,2]
[380392972,1755725438679,-151.0,0.00023844,2]
[380392974,1755725438689,-151.0,0.00023844,2]
[380392976,1755725438698,-300.0,0.00023844,2]
[380392978,1755725438707,-250.0,0.00023844,2]
[380392980,1755725438717,-151.0,0.00023844,2]
[380392982,1755725438726,-151.0,0.00023844,2]
[380392984,1755725438735,-151.0,0.00023844,2]
[380392986,1755725438744,-151.0,0.00023844,2]
[380392988,1755725438753,-300.0,0.00023844,2]
[380392990,1755725438762,-258.00117691,0.00023844,2]
[380392993,1755725438771,-151.0,0.00023844,2]
[380392994,1755725438780,-151.0,0.00023844,2]
[380392996,1755725438789,-151.0,0.00023844,2]
[380392999,1755725438799,-300.0,0.00023844,2]
[380393001,1755725438807,-250.0,0.00023844,2]
[380393003,1755725438817,-151.0,0.00023844,2]
[380393005,1755725438826,-151.0,0.00023844,2]
[380393007,1755725438835,-151.0,0.00023844,2]
[380393009,1755725438843,-250.0,0.00023844,2]
[380393010,1755725438853,-288.3171568,0.00023844,2]
[380393012,1755725438862,-151.0,0.00023844,2]
[380393014,1755725438871,-151.0,0.00023844,2]
[380393016,1755725438879,-151.0,0.00023844,2]
[380393019,1755725438890,-250.0,0.00023844,2]
[380393022,1755725438908,-151.0,0.00023844,2]
[380393024,1755725438923,-151.0,0.00023844,2]
[380393027,1755725438940,-151.0,0.00023844,2]
[380393030,1755725438958,-151.0,0.00023844,2]
[380393033,1755725438974,-151.0,0.00023844,2]
[380393036,1755725438990,-151.0,0.00023844,2]